[Event "Late-Titled-Tuesday-Blitz-June-18-2024"]
[Site "Chess.com"]
[Date "2024.06.18"]
[Round "6"]
[White "ChessSG1"]
[Black "Nicolik"]
[Result "1-0"]
[WhiteElo "2501"]
[BlackElo "2627"]
[TimeControl "180+1"]
[EndTime "15:10:04 PDT"]
[Termination "ChessSG1 won by resignation"]

1. c4 {[%clk 0:03:00.9]} 1... e5 {[%clk 0:02:58.3]} 2. g3 {[%clk 0:03:01.3]}
2... c6 {[%clk 0:02:55.5]} 3. Nf3 {[%clk 0:02:57.3]} 3... e4 {[%clk 0:02:54.8]}
4. Nd4 {[%clk 0:02:56.8]} 4... d5 {[%clk 0:02:54.3]} 5. d3 {[%clk 0:02:48.7]}
5... dxc4 {[%clk 0:02:36.2]} 6. dxe4 {[%clk 0:02:45.9]} 6... Bc5 {[%clk
0:02:33.1]} 7. Be3 {[%clk 0:02:38.7]} 7... Nf6 {[%clk 0:02:30.7]} 8. f3 {[%clk
0:02:09.4]} 8... O-O {[%clk 0:02:19.5]} 9. Nc3 {[%clk 0:02:08.9]} 9... Qe7
{[%clk 0:02:02.1]} 10. Qd2 {[%clk 0:02:00.7]} 10... Rd8 {[%clk 0:02:01]} 11.
O-O-O {[%clk 0:01:54.2]} 11... Na6 {[%clk 0:02:00.3]} 12. Nxc6 {[%clk
0:01:41.2]} 12... Rxd2 {[%clk 0:01:59.6]} 13. Nxe7+ {[%clk 0:01:41.1]} 13...
Bxe7 {[%clk 0:01:59.3]} 14. Rxd2 {[%clk 0:01:33.2]} 14... Be6 {[%clk 0:01:59.4]}
15. g4 {[%clk 0:01:31.2]} 15... Nc7 {[%clk 0:01:52.7]} 16. g5 {[%clk 0:01:30.6]}
16... Nh5 {[%clk 0:01:47.3]} 17. Nd5 {[%clk 0:01:27.1]} 17... Bd8 {[%clk
0:01:28.9]} 18. Bg2 {[%clk 0:01:22.3]} 18... Nb5 {[%clk 0:01:27.8]} 19. Rhd1
{[%clk 0:01:19.9]} 19... Ba5 {[%clk 0:01:27.5]} 20. Nc3 {[%clk 0:01:15]} 20...
Nxc3 {[%clk 0:01:20.1]} 21. bxc3 {[%clk 0:01:15.1]} 21... g6 {[%clk 0:01:07.2]}
22. Kb2 {[%clk 0:01:14.8]} 22... b5 {[%clk 0:01:05.9]} 23. a3 {[%clk 0:01:10.2]}
23... Bc7 {[%clk 0:01:04.4]} 24. e5 {[%clk 0:00:58.7]} 24... a5 {[%clk 0:00:55]}
25. f4 {[%clk 0:00:58.3]} 25... Rb8 {[%clk 0:00:55.6]} 26. Ba7 {[%clk
0:00:55.7]} 26... Rc8 {[%clk 0:00:47.4]} 27. Bb7 {[%clk 0:00:56]} 27... Rf8
{[%clk 0:00:47.6]} 28. Bc5 {[%clk 0:00:55.5]} 28... Rb8 {[%clk 0:00:47.8]} 29.
e3 {[%clk 0:00:34.4]} 29... Bg4 {[%clk 0:00:42.9]} 30. Rg1 {[%clk 0:00:10.9]}
30... Be6 {[%clk 0:00:33.5]} 31. Bf3 {[%clk 0:00:11.3]} 31... Ng7 {[%clk
0:00:33.5]} 32. Bd6 {[%clk 0:00:11.8]} 32... Bxd6 {[%clk 0:00:27.7]} 33. exd6
{[%clk 0:00:12.7]} 33... Nf5 {[%clk 0:00:26.8]} 34. e4 {[%clk 0:00:11.6]} 34...
Nh4 {[%clk 0:00:23.9]} 35. Bh1 {[%clk 0:00:11.7]} 35... Kf8 {[%clk 0:00:19.6]}
36. e5 {[%clk 0:00:11.5]} 36... Nf5 {[%clk 0:00:18.7]} 37. Be4 {[%clk
0:00:10.9]} 37... Ne3 {[%clk 0:00:17.8]} 38. Re1 {[%clk 0:00:11.2]} 38... Nf5
{[%clk 0:00:12.8]} 39. Bxf5 {[%clk 0:00:11.1]} 39... Bxf5 {[%clk 0:00:13.7]} 40.
Rd5 {[%clk 0:00:08.4]} 40... Ke8 {[%clk 0:00:13.3]} 41. Red1 {[%clk 0:00:06.3]}
41... Bd7 {[%clk 0:00:13.5]} 42. Rc5 {[%clk 0:00:06.6]} 42... Rb6 {[%clk
0:00:10.4]} 43. Rdd5 {[%clk 0:00:06.1]} 43... Rb8 {[%clk 0:00:09.6]} 44. Rc7
{[%clk 0:00:05.7]} 44... Kd8 {[%clk 0:00:09.7]} 45. Rdc5 {[%clk 0:00:05.5]}
45... Be6 {[%clk 0:00:04.2]} 46. h4 {[%clk 0:00:06.1]} 46... Bd7 {[%clk
0:00:04]} 47. Kc1 {[%clk 0:00:05.9]} 47... Be6 {[%clk 0:00:04.2]} 48. Kd2 {[%clk
0:00:06.3]} 48... Bd7 {[%clk 0:00:04.9]} 49. Ke3 {[%clk 0:00:06.6]} 49... Be6
{[%clk 0:00:05.3]} 50. Kd4 {[%clk 0:00:07]} 50... Bd7 {[%clk 0:00:05.6]} 51. Ra7
{[%clk 0:00:07.7]} 51... b4 {[%clk 0:00:05.5]} 52. axb4 {[%clk 0:00:08.4]} 52...
axb4 {[%clk 0:00:06]} 53. cxb4 {[%clk 0:00:08.9]} 53... Rxb4 {[%clk 0:00:06.4]}
54. Rxc4 {[%clk 0:00:09.3]} 54... Rb8 {[%clk 0:00:06.2]} 55. Rcc7 {[%clk
0:00:09]} 55... Be6 {[%clk 0:00:06.7]} 56. Rxf7 {[%clk 0:00:07.4]} 56... Rb4+
{[%clk 0:00:05.9]} 57. Kc5 {[%clk 0:00:07.3]} 57... Rc4+ {[%clk 0:00:06.3]} 58.
Kb5 {[%clk 0:00:06.7]} 58... Bxf7 {[%clk 0:00:05.7]} 59. Rxf7 {[%clk 0:00:07.3]}
59... Rd4 {[%clk 0:00:04.1]} 60. Kc6 {[%clk 0:00:06.8]} 60... Rc4+ {[%clk
0:00:04.6]} 61. Kd5 {[%clk 0:00:07.5]} 61... Ra4 {[%clk 0:00:04.5]} 62. Ke6
{[%clk 0:00:08]} 62... Kc8 {[%clk 0:00:04.6]} 63. Rf8+ {[%clk 0:00:07.9]} 63...
Kb7 {[%clk 0:00:05.2]} 64. d7 {[%clk 0:00:08.5]} 1-0

[Event "Late-Titled-Tuesday-Blitz-June-18-2024"]
[Site "Chess.com"]
[Date "2024.06.18"]
[Round "6"]
[White "ToddBryant"]
[Black "tortorchess"]
[Result "1-0"]
[WhiteElo "2373"]
[BlackElo "2210"]
[TimeControl "180+1"]
[EndTime "15:10:06 PDT"]
[Termination "ToddBryant won by checkmate"]

1. e4 {[%clk 0:03:00.9]} 1... c5 {[%clk 0:03:00]} 2. Nf3 {[%clk 0:03:01]} 2...
Nc6 {[%clk 0:03:00.6]} 3. d4 {[%clk 0:03:01.6]} 3... cxd4 {[%clk 0:03:01.1]} 4.
Nxd4 {[%clk 0:03:02.5]} 4... e5 {[%clk 0:03:01.5]} 5. Nb5 {[%clk 0:03:02.3]}
5... d6 {[%clk 0:03:02.2]} 6. N1c3 {[%clk 0:03:02.3]} 6... a6 {[%clk 0:03:02.8]}
7. Na3 {[%clk 0:03:02.5]} 7... b5 {[%clk 0:03:03.6]} 8. Nd5 {[%clk 0:03:01.9]}
8... Nf6 {[%clk 0:03:04.3]} 9. Bg5 {[%clk 0:02:54.9]} 9... Be7 {[%clk
0:03:02.2]} 10. Bxf6 {[%clk 0:02:50.5]} 10... Bxf6 {[%clk 0:03:02.5]} 11. c4
{[%clk 0:02:18.5]} 11... b4 {[%clk 0:03:01.8]} 12. Nc2 {[%clk 0:02:19]} 12... a5
{[%clk 0:03:02]} 13. Be2 {[%clk 0:02:15.8]} 13... O-O {[%clk 0:03:01.6]} 14. O-O
{[%clk 0:02:15.2]} 14... Be6 {[%clk 0:03:01]} 15. a3 {[%clk 0:02:13.3]} 15...
Bg5 {[%clk 0:03:01]} 16. axb4 {[%clk 0:02:08.2]} 16... Bxd5 {[%clk 0:03:00.7]}
17. Qxd5 {[%clk 0:01:52.9]} 17... Nxb4 {[%clk 0:03:00.6]} 18. Nxb4 {[%clk
0:01:53.4]} 18... axb4 {[%clk 0:03:01.5]} 19. Rxa8 {[%clk 0:01:52.9]} 19... Qxa8
{[%clk 0:03:01.7]} 20. Rd1 {[%clk 0:01:36.8]} 20... Qa2 {[%clk 0:02:54.1]} 21.
c5 {[%clk 0:01:09.8]} 21... Qxb2 {[%clk 0:02:46.9]} 22. Bc4 {[%clk 0:01:07.4]}
22... dxc5 {[%clk 0:02:36.5]} 23. g3 {[%clk 0:01:02.5]} 23... h6 {[%clk
0:02:33.8]} 24. h4 {[%clk 0:01:01.5]} 24... Bf6 {[%clk 0:02:33.4]} 25. Qxc5
{[%clk 0:00:57.3]} 25... Qc3 {[%clk 0:02:22.4]} 26. Qd5 {[%clk 0:00:54.7]} 26...
Qf3 {[%clk 0:02:18.2]} 27. Rd3 {[%clk 0:00:51.3]} 27... Qg4 {[%clk 0:02:17.4]}
28. Kh2 {[%clk 0:00:41.7]} 28... Qh5 {[%clk 0:02:08.5]} 29. Kg2 {[%clk
0:00:39.7]} 29... Qg4 {[%clk 0:02:07.9]} 30. Kh2 {[%clk 0:00:39.1]} 30... Qh5
{[%clk 0:02:07.9]} 31. Re3 {[%clk 0:00:37.8]} 31... g5 {[%clk 0:01:59.9]} 32.
Be2 {[%clk 0:00:35.6]} 32... Qg6 {[%clk 0:01:57.1]} 33. h5 {[%clk 0:00:34.6]}
33... Qg7 {[%clk 0:01:55.9]} 34. g4 {[%clk 0:00:32.6]} 34... Be7 {[%clk
0:01:52.6]} 35. Bc4 {[%clk 0:00:28.8]} 35... Rd8 {[%clk 0:01:51.3]} 36. Qb7
{[%clk 0:00:28.3]} 36... Qf6 {[%clk 0:01:49.5]} 37. Kg2 {[%clk 0:00:20.4]} 37...
Rd2 {[%clk 0:01:46.4]} 38. Rf3 {[%clk 0:00:19.5]} 38... Qd6 {[%clk 0:01:34.6]}
39. Rxf7 {[%clk 0:00:19.2]} 39... Kh8 {[%clk 0:00:49]} 40. Qxe7 {[%clk
0:00:18.9]} 40... Qxe7 {[%clk 0:00:19.7]} 41. Rxe7 {[%clk 0:00:17.2]} 41... Rd4
{[%clk 0:00:20]} 42. Bd5 {[%clk 0:00:16.5]} 42... Rd3 {[%clk 0:00:19.1]} 43.
Rxe5 {[%clk 0:00:14.6]} 43... b3 {[%clk 0:00:19.5]} 44. Re8+ {[%clk 0:00:15]}
44... Kg7 {[%clk 0:00:16.1]} 45. Rb8 {[%clk 0:00:15.9]} 45... Kf6 {[%clk
0:00:13.7]} 46. Rxb3 {[%clk 0:00:16.2]} 46... Ke5 {[%clk 0:00:14]} 47. Rxd3
{[%clk 0:00:15.4]} 47... Kf4 {[%clk 0:00:14.1]} 48. Rf3+ {[%clk 0:00:15.6]}
48... Ke5 {[%clk 0:00:14.5]} 49. Rf5+ {[%clk 0:00:16.1]} 49... Kd6 {[%clk
0:00:15]} 50. Rf6+ {[%clk 0:00:16.6]} 50... Ke5 {[%clk 0:00:15.6]} 51. Rxh6
{[%clk 0:00:17.5]} 51... Kf4 {[%clk 0:00:15.9]} 52. Rf6+ {[%clk 0:00:16.3]}
52... Ke5 {[%clk 0:00:16.2]} 53. Rf5+ {[%clk 0:00:16.7]} 53... Kd4 {[%clk
0:00:15.7]} 54. Rxg5 {[%clk 0:00:17.1]} 54... Kc5 {[%clk 0:00:15.9]} 55. f3
{[%clk 0:00:17.5]} 55... Kd6 {[%clk 0:00:16.8]} 56. Kg3 {[%clk 0:00:17.5]} 56...
Kc5 {[%clk 0:00:17.3]} 57. Kf4 {[%clk 0:00:18.4]} 57... Kd4 {[%clk 0:00:18]} 58.
h6 {[%clk 0:00:19.3]} 58... Kd3 {[%clk 0:00:18.5]} 59. e5 {[%clk 0:00:19.1]}
59... Ke2 {[%clk 0:00:19.4]} 60. Ke4 {[%clk 0:00:19.1]} 60... Kf2 {[%clk
0:00:20.3]} 61. f4 {[%clk 0:00:19.5]} 61... Kg3 {[%clk 0:00:20.6]} 62. Rg7
{[%clk 0:00:19.2]} 62... Kh4 {[%clk 0:00:20.8]} 63. g5 {[%clk 0:00:20.1]} 63...
Kg4 {[%clk 0:00:21.2]} 64. Bf7 {[%clk 0:00:20.2]} 64... Kg3 {[%clk 0:00:21.2]}
65. Bg6 {[%clk 0:00:20.3]} 65... Kg2 {[%clk 0:00:21.7]} 66. f5 {[%clk
0:00:20.7]} 66... Kg3 {[%clk 0:00:22.6]} 67. Rb7 {[%clk 0:00:20.8]} 67... Kg4
{[%clk 0:00:23.5]} 68. h7 {[%clk 0:00:19.1]} 68... Kg3 {[%clk 0:00:24.4]} 69.
Bh5 {[%clk 0:00:17.6]} 69... Kh4 {[%clk 0:00:23.2]} 70. Kf4 {[%clk 0:00:17.3]}
70... Kh3 {[%clk 0:00:21.6]} 71. g6 {[%clk 0:00:17.2]} 71... Kh4 {[%clk
0:00:21.8]} 72. g7 {[%clk 0:00:17.4]} 72... Kh3 {[%clk 0:00:21.2]} 73. Kg5
{[%clk 0:00:17.8]} 73... Kg3 {[%clk 0:00:20.7]} 74. f6 {[%clk 0:00:18.7]} 74...
Kh3 {[%clk 0:00:20.2]} 75. e6 {[%clk 0:00:19.6]} 75... Kg3 {[%clk 0:00:20.4]}
76. e7 {[%clk 0:00:20.5]} 76... Kh3 {[%clk 0:00:20.5]} 77. f7 {[%clk 0:00:21.4]}
77... Kg3 {[%clk 0:00:20.7]} 78. Bd1 {[%clk 0:00:22.1]} 78... Kh3 {[%clk
0:00:21.5]} 79. Ba4 {[%clk 0:00:22.4]} 79... Kg3 {[%clk 0:00:22.4]} 80. Kf6
{[%clk 0:00:21.8]} 80... Kh3 {[%clk 0:00:23.3]} 81. Ke5 {[%clk 0:00:22.1]} 81...
Kg3 {[%clk 0:00:24.2]} 82. Kd4 {[%clk 0:00:21.5]} 82... Kh3 {[%clk 0:00:25.1]}
83. Rd7 {[%clk 0:00:20.1]} 83... Kg3 {[%clk 0:00:26]} 84. Kc4 {[%clk 0:00:20]}
84... Kf2 {[%clk 0:00:26.9]} 85. f8=Q+ {[%clk 0:00:19.8]} 85... Ke2 {[%clk
0:00:27.8]} 86. e8=Q# {[%clk 0:00:20.1]} 1-0

[Event "Late-Titled-Tuesday-Blitz-June-18-2024"]
[Site "Chess.com"]
[Date "2024.06.18"]
[Round "6"]
[White "Losingexperience"]
[Black "ncofre98"]
[Result "1-0"]
[WhiteElo "2740"]
[BlackElo "2558"]
[TimeControl "180+1"]
[EndTime "15:10:07 PDT"]
[Termination "Losingexperience won by resignation"]

1. e4 {[%clk 0:03:00.9]} 1... c5 {[%clk 0:02:59.5]} 2. Nf3 {[%clk 0:02:59.9]}
2... d6 {[%clk 0:03:00]} 3. d4 {[%clk 0:02:59.9]} 3... cxd4 {[%clk 0:03:00.9]}
4. Qxd4 {[%clk 0:03:00.1]} 4... Nf6 {[%clk 0:03:01.1]} 5. Bb5+ {[%clk
0:02:57.9]} 5... Bd7 {[%clk 0:02:59.9]} 6. Nc3 {[%clk 0:02:53.6]} 6... Bxb5
{[%clk 0:02:58.3]} 7. Nxb5 {[%clk 0:02:53.5]} 7... Qa5+ {[%clk 0:02:58]} 8. Nc3
{[%clk 0:02:53.4]} 8... Nc6 {[%clk 0:02:57.5]} 9. Qd3 {[%clk 0:02:52.9]} 9... g6
{[%clk 0:02:53]} 10. O-O {[%clk 0:02:52]} 10... Bg7 {[%clk 0:02:53]} 11. Bg5
{[%clk 0:02:46.9]} 11... O-O {[%clk 0:02:41.2]} 12. Bxf6 {[%clk 0:02:46.9]}
12... Bxf6 {[%clk 0:02:39.2]} 13. Nd5 {[%clk 0:02:47.1]} 13... Bg7 {[%clk
0:02:38.7]} 14. c3 {[%clk 0:02:45.5]} 14... e6 {[%clk 0:02:32.1]} 15. Ne3 {[%clk
0:02:44.2]} 15... Rad8 {[%clk 0:02:31.9]} 16. Nd4 {[%clk 0:02:39.6]} 16... a6
{[%clk 0:02:17.1]} 17. a4 {[%clk 0:02:36.3]} 17... Qc5 {[%clk 0:02:04.4]} 18. b4
{[%clk 0:02:32.3]} 18... Qa7 {[%clk 0:01:59.8]} 19. Nxc6 {[%clk 0:02:24.2]}
19... bxc6 {[%clk 0:01:58.4]} 20. b5 {[%clk 0:02:24.5]} 20... axb5 {[%clk
0:01:52.8]} 21. axb5 {[%clk 0:02:24.5]} 21... Qc7 {[%clk 0:01:52.1]} 22. bxc6
{[%clk 0:02:16.5]} 22... Qxc6 {[%clk 0:01:50.1]} 23. Rac1 {[%clk 0:02:14.8]}
23... Rc8 {[%clk 0:01:43]} 24. c4 {[%clk 0:02:14]} 24... Rfd8 {[%clk 0:01:42.3]}
25. Rfd1 {[%clk 0:02:13.7]} 25... Qc5 {[%clk 0:01:41.5]} 26. g3 {[%clk
0:02:11.2]} 26... h5 {[%clk 0:01:41.2]} 27. h4 {[%clk 0:02:10.9]} 27... Ra8
{[%clk 0:01:40.3]} 28. Kg2 {[%clk 0:02:09.6]} 28... Ra3 {[%clk 0:01:40.2]} 29.
Qe2 {[%clk 0:02:07.2]} 29... Rb8 {[%clk 0:01:29.8]} 30. Rb1 {[%clk 0:02:03.1]}
30... Rxb1 {[%clk 0:01:20.7]} 31. Rxb1 {[%clk 0:02:04]} 31... Bd4 {[%clk
0:01:19.4]} 32. Rb8+ {[%clk 0:01:46.8]} 32... Kg7 {[%clk 0:01:19.2]} 33. Rb7
{[%clk 0:01:47.3]} 33... Qc6 {[%clk 0:01:07.1]} 34. Rb5 {[%clk 0:01:42.3]} 34...
Qxe4+ {[%clk 0:01:06.6]} 35. Qf3 {[%clk 0:01:42.1]} 35... Qxf3+ {[%clk
0:01:04.3]} 36. Kxf3 {[%clk 0:01:43]} 36... Rc3 {[%clk 0:00:57.3]} 37. Rb4
{[%clk 0:01:43.1]} 37... Kf6 {[%clk 0:00:46.5]} 38. Ke4 {[%clk 0:01:42.2]} 38...
Bxe3 {[%clk 0:00:45.7]} 39. fxe3 {[%clk 0:01:42.1]} 39... Rc1 {[%clk 0:00:43.6]}
40. Kf3 {[%clk 0:01:40.5]} 40... Ke5 {[%clk 0:00:42.3]} 41. Rb5+ {[%clk
0:01:40.5]} 41... Kf6 {[%clk 0:00:42.5]} 42. Rb6 {[%clk 0:01:40.2]} 42... Ke7
{[%clk 0:00:40]} 43. Rb7+ {[%clk 0:01:40.1]} 43... Ke8 {[%clk 0:00:38.8]} 44.
Rb8+ {[%clk 0:01:37.8]} 44... Ke7 {[%clk 0:00:39.3]} 45. Rb7+ {[%clk 0:01:38]}
45... Kf6 {[%clk 0:00:40.2]} 46. Rb6 {[%clk 0:01:38]} 46... Rd1 {[%clk
0:00:40.9]} 47. Rb7 {[%clk 0:01:31]} 47... Rd2 {[%clk 0:00:33.4]} 48. Rd7 {[%clk
0:01:27]} 48... Rc2 {[%clk 0:00:16.1]} 49. Rc7 {[%clk 0:01:24]} 49... Rc3 {[%clk
0:00:11.7]} 50. Rc6 {[%clk 0:01:08.6]} 50... Ke5 {[%clk 0:00:09.7]} 51. Rc7
{[%clk 0:01:03.4]} 51... f5 {[%clk 0:00:09.2]} 52. Rc8 {[%clk 0:01:02.7]} 52...
d5 {[%clk 0:00:07.4]} 53. Rg8 {[%clk 0:00:55.9]} 53... d4 {[%clk 0:00:07.4]} 54.
Rxg6 {[%clk 0:00:52.8]} 54... Rxe3+ {[%clk 0:00:07.8]} 55. Kf2 {[%clk
0:00:52.9]} 55... Rc3 {[%clk 0:00:07.3]} 56. Rg5 {[%clk 0:00:53]} 56... Ke4
{[%clk 0:00:06.5]} 57. Rxh5 {[%clk 0:00:49.9]} 57... Rc2+ {[%clk 0:00:07.1]} 58.
Ke1 {[%clk 0:00:49.5]} 58... Ke3 {[%clk 0:00:04.2]} 59. Kd1 {[%clk 0:00:48.6]}
59... Rxc4 {[%clk 0:00:03.3]} 60. g4 {[%clk 0:00:43]} 60... e5 {[%clk
0:00:01.9]} 61. Rxf5 {[%clk 0:00:42.1]} 61... e4 {[%clk 0:00:02.1]} 62. h5
{[%clk 0:00:41.6]} 62... d3 {[%clk 0:00:01.6]} 63. Rd5 {[%clk 0:00:33.2]} 63...
Ra4 {[%clk 0:00:01.3]} 64. Kc1 {[%clk 0:00:34]} 64... Ra2 {[%clk 0:00:01.6]} 65.
h6 {[%clk 0:00:33.4]} 65... Rg2 {[%clk 0:00:01.7]} 66. h7 {[%clk 0:00:26.8]}
66... Rh2 {[%clk 0:00:02.2]} 67. Rh5 {[%clk 0:00:25.5]} 67... Rg2 {[%clk
0:00:01.3]} 68. h8=Q {[%clk 0:00:24.4]} 1-0

[Event "Late-Titled-Tuesday-Blitz-June-18-2024"]
[Site "Chess.com"]
[Date "2024.06.18"]
[Round "6"]
[White "AlejandroArias"]
[Black "AleksandraMilovic"]
[Result "1/2-1/2"]
[WhiteElo "2373"]
[BlackElo "2052"]
[TimeControl "180+1"]
[EndTime "15:10:09 PDT"]
[Termination "Game drawn - insufficient material"]

1. d4 {[%clk 0:03:00.9]} 1... Nf6 {[%clk 0:02:54.2]} 2. Bf4 {[%clk 0:02:58.6]}
2... c6 {[%clk 0:02:51.4]} 3. c4 {[%clk 0:02:57.4]} 3... d5 {[%clk 0:02:48.4]}
4. e3 {[%clk 0:02:55.4]} 4... e6 {[%clk 0:02:39]} 5. Nc3 {[%clk 0:02:53.8]} 5...
Be7 {[%clk 0:02:39.1]} 6. Nf3 {[%clk 0:02:53.2]} 6... O-O {[%clk 0:02:37]} 7.
Bd3 {[%clk 0:02:52.8]} 7... Nbd7 {[%clk 0:02:33.2]} 8. O-O {[%clk 0:02:52.3]}
8... dxc4 {[%clk 0:02:23]} 9. Bxc4 {[%clk 0:02:51.7]} 9... b5 {[%clk 0:02:21.7]}
10. Bd3 {[%clk 0:02:46.6]} 10... a6 {[%clk 0:02:20.7]} 11. Qe2 {[%clk
0:02:43.8]} 11... Bb7 {[%clk 0:02:19.4]} 12. a3 {[%clk 0:02:37.5]} 12... c5
{[%clk 0:02:18.7]} 13. Rfd1 {[%clk 0:02:28.3]} 13... cxd4 {[%clk 0:02:01.8]} 14.
exd4 {[%clk 0:02:26.4]} 14... Rc8 {[%clk 0:01:58.7]} 15. Ne5 {[%clk 0:02:13.4]}
15... Nb6 {[%clk 0:01:55.5]} 16. Bg5 {[%clk 0:02:05.4]} 16... Nfd5 {[%clk
0:01:43.2]} 17. Bd2 {[%clk 0:01:53]} 17... Bg5 {[%clk 0:01:12.7]} 18. Bxg5
{[%clk 0:01:37.6]} 18... Qxg5 {[%clk 0:01:11.5]} 19. Ne4 {[%clk 0:01:37.4]}
19... Qh4 {[%clk 0:00:55.7]} 20. Nd6 {[%clk 0:01:25.7]} 20... Nf4 {[%clk
0:00:51.9]} 21. Qg4 {[%clk 0:01:11.3]} 21... Qxg4 {[%clk 0:00:35.5]} 22. Nxg4
{[%clk 0:01:10.9]} 22... Rc7 {[%clk 0:00:23.7]} 23. Nxb7 {[%clk 0:01:04.1]}
23... Nxd3 {[%clk 0:00:18.8]} 24. Rxd3 {[%clk 0:01:02.1]} 24... Rxb7 {[%clk
0:00:19]} 25. Rc1 {[%clk 0:01:02.4]} 25... Rbb8 {[%clk 0:00:17.2]} 26. Rdc3
{[%clk 0:01:00.7]} 26... Rfc8 {[%clk 0:00:15.8]} 27. Rc6 {[%clk 0:00:56.6]}
27... Rxc6 {[%clk 0:00:14.2]} 28. Rxc6 {[%clk 0:00:57.5]} 28... Rc8 {[%clk
0:00:14.7]} 29. Ne5 {[%clk 0:00:52]} 29... Rxc6 {[%clk 0:00:14.5]} 30. Nxc6
{[%clk 0:00:52.7]} 30... Nc4 {[%clk 0:00:14.9]} 31. Nb4 {[%clk 0:00:43.6]} 31...
a5 {[%clk 0:00:11.9]} 32. Nd3 {[%clk 0:00:41.8]} 32... Kf8 {[%clk 0:00:10.1]}
33. Kf1 {[%clk 0:00:41.7]} 33... Ke7 {[%clk 0:00:10.3]} 34. Ke2 {[%clk 0:00:42]}
34... Kd6 {[%clk 0:00:10.3]} 35. Nc5 {[%clk 0:00:17.1]} 35... Nxb2 {[%clk
0:00:07.5]} 36. Nb7+ {[%clk 0:00:17.1]} 36... Kd5 {[%clk 0:00:07.4]} 37. Nxa5
{[%clk 0:00:17.3]} 37... Kxd4 {[%clk 0:00:06.8]} 38. Nc6+ {[%clk 0:00:12.4]}
38... Kc3 {[%clk 0:00:06.6]} 39. Nd8 {[%clk 0:00:09.8]} 39... Kb3 {[%clk
0:00:04.4]} 40. Nxf7 {[%clk 0:00:09.7]} 40... Kxa3 {[%clk 0:00:04.8]} 41. Ng5
{[%clk 0:00:08.9]} 41... Nc4 {[%clk 0:00:04.4]} 42. Nxe6 {[%clk 0:00:08.6]}
42... b4 {[%clk 0:00:04.9]} 43. Nd4 {[%clk 0:00:01.6]} 43... b3 {[%clk
0:00:05.3]} 44. Nxb3 {[%clk 0:00:01.9]} 44... Kxb3 {[%clk 0:00:06.2]} 45. Kd3
{[%clk 0:00:02.6]} 45... Kb4 {[%clk 0:00:06.7]} 46. f4 {[%clk 0:00:02]} 46...
Kc5 {[%clk 0:00:06.2]} 47. Ke4 {[%clk 0:00:02.1]} 47... Kd6 {[%clk 0:00:06]} 48.
g4 {[%clk 0:00:02]} 48... Ke7 {[%clk 0:00:06]} 49. f5 {[%clk 0:00:02]} 49... Kf6
{[%clk 0:00:06]} 50. Kf4 {[%clk 0:00:02.4]} 50... h6 {[%clk 0:00:06.1]} 51. h4
{[%clk 0:00:02.8]} 51... Nd6 {[%clk 0:00:04.9]} 52. g5+ {[%clk 0:00:03.7]} 52...
hxg5+ {[%clk 0:00:04.1]} 53. hxg5+ {[%clk 0:00:04.6]} 53... Kf7 {[%clk
0:00:04.5]} 54. Ke5 {[%clk 0:00:05]} 54... Ne8 {[%clk 0:00:03.3]} 55. Kf4 {[%clk
0:00:03.2]} 55... Nc7 {[%clk 0:00:02.5]} 56. Ke5 {[%clk 0:00:03.4]} 56... Nb5
{[%clk 0:00:02.8]} 57. f6 {[%clk 0:00:01.4]} 57... gxf6+ {[%clk 0:00:02.2]} 58.
gxf6 {[%clk 0:00:01.4]} 58... Nc7 {[%clk 0:00:02.6]} 59. Kf5 {[%clk 0:00:02.3]}
59... Nb5 {[%clk 0:00:03.5]} 60. Kg4 {[%clk 0:00:02.9]} 60... Nc7 {[%clk
0:00:03.9]} 61. Kg3 {[%clk 0:00:03.8]} 61... Nd5 {[%clk 0:00:04.6]} 62. Kf2
{[%clk 0:00:04.4]} 62... Nxf6 {[%clk 0:00:05.5]} 1/2-1/2